bitfinex/quotes_ETHUSD_20241106
["timestamp","ask_amount","ask_price","bid_price","bid_amount"]
[1730884974709,4.59549,2620.4,2619.9,3.81686]
[1730884974913,0.789,2620.6,2620.1,3.81658]
[1730884975130,0.789,2620.6,2620.1,3.81656]
[1730884975298,3.81588,2620.7,2620.2,3.81639]
[1730884976207,5.02311344,2620.8,2620.3,7.63263]
[1730884976538,3.81579,2620.7,2620.3,0.7568]
[1730884976837,5.90696478,2620.8,2620.3,4.57308]
[1730884976995,5.50819134,2620.8,2620.3,4.57308]
[1730884977501,5.50819134,2620.8,2620.3,8.38936]
[1730884977807,3.81559,2620.9,2620.3,4.57308]
[1730884978051,3.81573,2620.8,2620.3,0.7568]
[1730884978621,3.81573,2620.8,2620.3,4.57315]
[1730884978829,0.7933,2620.9,2620.3,4.57315]
[1730884979025,0.39864966,2621.2,2620.3,4.57315]
[1730884979344,3.81519,2621.1,2620.6,3.81584]
[1730884979542,0.49927497,2621.2,2620.7,3.81576]
[1730884979702,0.7793,2621.4,2620.8,0.7693]
[1730884980038,0.7793,2621.4,2620.9,3.8154]
[1730884980225,3.81468,2621.5,2620.8,4.58492]
[1730884980535,3.81517,2621.2,2620.8,0.7693]
[1730884980704,3.81486,2621.4,2620.9,3.81533]
[1730884980904,4.652972,2621.4,2620.9,3.81533]
[1730884981530,4.652972,2621.4,2620.8,8.40028]
[1730884981811,4.652972,2621.4,2620.8,4.58478]
[1730884982145,4.652902,2621.4,2620.8,4.58484]
[1730884982345,4.652862,2621.4,2620.9,3.81538]
[1730884983019,4.652862,2621.4,2620.9,3.81545]
[1730884983712,4.652862,2621.4,2620.9,7.63085]
[1730884984257,4.21300071,2621.7,2621.0,0.07630121]
[1730884984410,3.81453,2621.6,2621.1,3.81512]
[1730884986110,3.81468,2621.5,2621.0,3.81533]
[1730884986334,3.81468,2621.5,2621.0,3.81525]
[1730884986655,3.81468,2621.5,2621.1,3.81516]
[1730884987322,3.81468,2621.5,2620.8,7.58481]
[1730884987522,3.81468,2621.5,2621.0,7.63056]
[1730884987730,3.81468,2621.5,2621.0,3.81523]
[1730884987929,4.27679,2621.7,2621.0,3.81523]
[1730884988126,0.7991,2622.1,2621.6,0.7671]
[1730884988326,4.61297,2622.1,2621.6,4.58154]
[1730884988526,3.81387,2622.1,2621.6,0.7671]
[1730884988834,3.8144,2621.7,2621.2,7.58214]
[1730884989034,0.38144,2621.7,2621.2,3.7671]
[1730884989351,3.81484,2621.4,2621.0,3.7911]
[1730884989554,3.81484,2621.4,2620.4,3.82618]
[1730884989555,0.8327,2621.4,2620.4,3.81618]
[1730884989761,3.8155,2620.9,2620.3,4.60737]
[1730884989927,3.81529,2621.1,2620.5,3.81597]
[1730884990112,3.81473,2621.5,2620.8,3.81552]
[1730884990323,0.8032,2621.6,2621.0,3.81524]
[1730884990651,4.61779,2621.6,2621.1,0.7629]
[1730884991147,4.61779,2621.6,2621.1,4.57807]
[1730884991349,3.81419,2621.8,2621.2,3.81491]
[1730884991529,3.81424,2621.8,2621.2,7.62986]
[1730884991714,3.81424,2621.8,2621.2,3.81491]
[1730884991911,4.57832,2622.1,2621.6,3.81444]
[1730884992150,4.57832,2622.1,2621.2,0.07629043]
[1730884992151,0.7636,2622.5,2621.7,3.86428978]
[1730884992430,0.39848765,2622.1,2621.9,3.81391]
[1730884992852,0.7636,2622.8,2622.2,0.7907]
[1730884993095,0.39844219,2622.7,2622.3,0.07625962]
[1730884993362,3.81265,2622.9,2622.2,4.60416]
[1730884993658,3.81301,2622.6,2622.2,0.7907]
[1730884993853,7.62585,2622.7,2622.2,0.7907]
[1730884994154,3.81301,2622.6,2622.2,0.7907]
[1730884994359,3.81319,2622.5,2622.2,0.7907]
[1730884994556,0.460835,2622.9,2622.2,0.7907]
[1730884994760,3.81257,2622.9,2622.2,4.60421]
[1730884995062,3.81257,2622.9,2622.4,3.81328]
[1730884995265,4.60799,2623.1,2622.5,0.076255]
[1730884995464,3.81229,2623.1,2622.6,0.7561]
[1730884995965,7.62413,2623.3,2622.7,3.81277]
[1730884996452,7.62413,2623.3,2622.8,3.81264]
[1730884996453,3.81204,2623.3,2622.8,3.81264]
[1730884997032,3.81178,2623.5,2622.8,3.81264]
[1730884997268,3.81201,2623.3,2622.8,3.81264]
[1730884997659,7.62408,2623.3,2622.8,3.81264]
[1730884997863,7.62408,2623.3,2622.7,3.0]
[1730884997864,3.81201,2623.3,2622.7,3.0]
[1730884998045,7.62414,2623.3,2622.7,6.81284]
[1730884998645,3.81201,2623.3,2622.7,6.81284]
[1730884998875,3.81218,2623.2,2622.7,6.81284]
[1730884999356,3.81258,2622.9,2622.6,0.7561]
[1730884999561,0.8045,2623.1,2622.4,0.7522]
[1730884999746,3.81295,2622.7,2622.4,0.7522]
[1730885000537,3.81294,2622.7,2622.4,0.7522]
[1730885001038,3.81309,2622.6,2622.4,0.7522]
[1730885001259,3.81323,2622.5,2622.2,0.8134]
[1730885001771,3.81297,2622.7,2622.2,0.8134]
[1730885001976,3.81297,2622.7,2622.2,4.62697]
[1730885002480,3.81272,2622.8,2622.3,3.88967349]
[1730885002663,3.81257,2622.9,2622.4,3.81318]
[1730885002868,3.81257,2622.9,2622.3,3.81344]
[1730885003189,3.81273,2622.8,2622.4,3.81322]
[1730885003686,3.81257,2622.9,2622.4,3.81322]
[1730885003867,3.81246,2623.0,2622.5,3.81311]
[1730885004187,3.813,2622.7,2622.2,0.8134]
[1730885004353,3.81303,2622.6,2622.2,0.8134]
[1730885005171,3.81319,2622.5,2622.2,0.8134]
[1730885005371,3.813,2622.7,2621.9,0.787]
[1730885005372,3.81368,2622.2,2621.9,0.787]
[1730885005775,3.81375,2622.1,2621.9,0.787]
[1730885006561,0.7593,2622.8,2621.9,0.787]
[1730885006562,3.8134,2622.4,2621.9,0.787]
[1730885006761,3.81357,2622.3,2621.9,0.787]
[1730885006978,3.8134,2622.4,2621.9,4.60101]
[1730885007163,7.62682,2622.4,2621.9,4.60101]
[1730885007373,3.81345,2622.3,2621.9,0.787]
[1730885007989,3.81359,2622.2,2621.9,0.787]
[1730885008189,7.62725,2622.2,2621.9,0.787]
[1730885008351,0.381303,2622.5,2621.9,0.787]
[1730885008352,3.81341,2622.4,2621.9,0.787]
[1730885008547,3.81345,2622.3,2621.9,0.787]
[1730885009347,3.81359,2622.2,2621.2,3.81494]
[1730885009547,3.81491,2621.3,2621.0,0.8232]
[1730885010478,3.81547,2621.0,2620.7,0.8268]
[1730885010679,3.816,2620.6,2620.4,0.8268]
[1730885010881,3.81586,2620.7,2620.4,0.8268]
[1730885011550,1.22368496,2621.2,2620.4,0.8268]
[1730885011750,3.81556,2620.9,2620.4,0.8268]
[1730885012446,1.22368496,2621.2,2620.4,0.8268]
[1730885012650,0.39858496,2621.2,2620.6,3.0]
[1730885012894,0.39858496,2621.2,2620.7,7.70764718]
[1730885013061,0.39858496,2621.2,2620.6,3.0]
[1730885013268,3.81528,2621.1,2620.6,3.0]
[1730885013596,0.39853843,2621.2,2621.1,6.81519]
[1730885013763,7.62849,2621.8,2621.2,6.81502]
[1730885013968,3.81424,2621.8,2621.2,6.81502]
[1730885014194,3.81432,2621.7,2621.2,6.81502]
[1730885014691,3.81452,2621.6,2621.1,3.0]
[1730885014858,4.577176,2621.7,2621.1,3.0]
[1730885014859,3.81408,2621.9,2621.1,3.0]
[1730885015187,3.81408,2621.9,2621.3,3.81481]
[1730885015391,3.81389,2622.0,2621.3,3.81481]
[1730885015623,3.81382,2622.1,2621.3,0.8291]
[1730885015797,8.087982,2622.1,2621.5,3.81455]
[1730885016096,3.81409,2621.9,2621.4,3.81475]
[1730885017484,3.81409,2621.9,2621.4,7.62941]
[1730885017693,3.81409,2621.9,2621.4,3.81466]
[1730885018078,3.81409,2621.9,2621.5,3.8146]
[1730885018283,3.81409,2621.9,2621.4,3.81466]
[1730885018284,4.3930306,2621.9,2621.4,7.62933]
[1730885018509,3.81339,2622.4,2621.3,0.8291]
[1730885018808,3.81351,2622.3,2621.8,3.81415]
[1730885019315,0.39846158,2622.7,2621.6,3.81434]
[1730885019316,0.39846158,2622.7,2622.0,3.8138]
[1730885019483,4.21139158,2622.7,2622.2,4.58268]
[1730885019667,0.39846158,2622.7,2622.3,3.8133]
[1730885020021,0.39836428,2622.9,2622.4,3.81328]
[1730885020313,0.89478871,2622.9,2622.4,3.81328]
[1730885020626,4.70742871,2622.9,2622.4,3.81328]
[1730885020804,0.89478871,2622.9,2622.5,3.81315]
[1730885020967,0.89478871,2622.9,2622.5,3.88940911]
[1730885020968,0.39836428,2622.9,2622.5,3.88940911]
[1730885021173,0.39836428,2622.9,2622.6,3.8129]
[1730885021373,0.39836428,2622.9,2622.5,3.81303]
[1730885022378,0.39836428,2622.9,2622.3,3.0]
[1730885022714,0.39836428,2622.9,2622.6,3.81291]
[1730885023069,0.39836428,2622.9,2622.5,3.0]
[1730885023292,0.39836428,2622.9,2622.4,3.0]
[1730885023494,4.70740271,2622.9,2622.4,6.81328]
[1730885023693,0.89480271,2622.9,2622.4,6.81328]
[1730885023932,0.39836428,2622.9,2622.4,3.81324]
[1730885024092,0.39836428,2622.9,2622.5,3.81304]
[1730885024437,0.39836428,2622.9,2622.4,7.62645]
[1730885024596,0.39836428,2622.9,2622.5,3.81314]
[1730885026394,0.39836428,2622.9,2622.4,3.81321]
[1730885027103,0.39836428,2622.9,2622.5,3.81314]
[1730885028603,0.39836428,2622.9,2622.6,3.81298]
[1730885029144,0.39836428,2622.9,2622.7,3.81278]
[1730885029438,0.39836428,2622.9,2622.6,3.81292]
[1730885029649,0.39836428,2622.9,2622.7,3.81285]
[1730885029851,4.57366,2623.4,2622.9,3.81249]
[1730885030149,0.39830372,2623.3,2623.1,3.8122]
[1730885030667,7.62332,2623.6,2623.2,0.3818]
[1730885030835,3.81171,2623.5,2623.0,3.81242]
[1730885031041,4.650222,2623.5,2623.0,3.81242]
[1730885031449,0.8295,2623.4,2622.6,3.0]
[1730885031605,3.8122,2623.2,2622.6,6.81289]
[1730885031948,3.8123,2623.1,2622.6,6.81289]
[1730885032301,0.39828733,2623.7,2622.6,3.0]
[1730885032509,0.39828733,2623.7,2623.1,4.60397]
[1730885032734,0.42096373,2623.6,2623.1,4.60397]
[1730885032928,0.42096373,2623.6,2623.2,3.81205]
[1730885033542,0.42096373,2623.6,2623.1,4.60407]
[1730885033543,4.23251373,2623.6,2623.1,4.60407]
[1730885034230,4.23251373,2623.6,2623.2,3.81211]
[1730885034445,3.81185,2623.4,2622.8,0.7584]
[1730885034776,3.81185,2623.4,2622.2,0.01]
[1730885034777,0.7566,2623.1,2622.2,0.7584]
[1730885035064,3.81307,2622.6,2622.2,0.7584]
[1730885035558,3.81281,2622.8,2622.2,4.57197]
[1730885035559,3.81287,2622.7,2622.2,4.57197]
[1730885035754,3.81281,2622.8,2622.2,0.7584]
[1730885036063,3.81286,2622.7,2622.2,3.7584]
[1730885036777,3.81303,2622.6,2622.1,3.0]
[1730885037073,3.81302,2622.6,2622.1,3.0]
[1730885037365,3.81302,2622.6,2622.1,6.8137]
[1730885038420,3.81302,2622.6,2622.1,3.0]
[1730885038724,3.81302,2622.6,2622.1,6.81366]
[1730885038919,3.81315,2622.5,2622.1,3.0]
[1730885039134,3.81315,2622.5,2622.1,6.81373]
[1730885039363,3.8129,2622.7,2622.3,3.0]
[1730885039515,0.7566,2623.1,2622.3,3.0]
[1730885039516,3.81311,2622.6,2622.3,3.0]
[1730885039720,3.81311,2622.6,2622.1,6.81365]
[1730885040219,7.6262,2622.6,2622.1,6.81365]
[1730885040422,1.55932,2622.6,2621.9,3.758]
[1730885040675,3.81355,2622.3,2621.9,0.758]
[1730885041526,7.6271,2622.3,2621.9,0.758]
[1730885041721,3.81355,2622.3,2621.9,0.758]
[1730885042581,3.81441,2621.7,2621.3,3.81489]
[1730885042725,3.81451,2621.6,2621.1,8.39868]
[1730885042920,3.8136,2622.2,2621.8,0.7716]
[1730885043158,7.62682,2622.4,2621.9,3.81402]
[1730885043525,3.81339,2622.4,2621.9,3.81402]
[1730885043724,7.6268,2622.4,2621.9,3.81402]
[1730885043921,4.60925,2622.3,2621.7,3.81423]
[1730885044178,3.8137,2622.2,2621.6,3.81444]
[1730885044462,3.81383,2622.1,2621.6,3.81444]
[1730885044668,1.638064,2622.3,2621.9,3.81391]
[1730885044821,5.451574,2622.3,2621.7,3.81418]
[1730885045027,5.451574,2622.3,2621.8,3.81414]
[1730885045229,3.81386,2622.1,2621.8,3.0]
[1730885045538,3.81386,2622.1,2621.7,3.0]
[1730885045949,7.628,2622.0,2621.5,7.57163]
[1730885046355,3.81403,2621.9,2621.5,7.57163]
[1730885046546,3.81433,2621.7,2621.3,3.0]
[1730885046777,0.55,2622.2,2621.2,0.84549445]
[1730885046778,3.81408,2621.9,2621.2,0.84549445]
[1730885046961,3.8138,2622.1,2621.5,3.8145]
[1730885047165,3.81353,2622.3,2621.8,3.8141]
[1730885047395,0.381353,2622.3,2621.7,0.7784]
[1730885047568,3.8139,2622.0,2621.7,0.7784]
[1730885047749,3.81374,2622.1,2621.7,0.7784]
[1730885048167,3.8139,2622.0,2621.7,0.7784]
[1730885048583,3.8139,2622.0,2621.5,3.7915]
[1730885048792,3.81403,2621.9,2621.5,7.6061]
[1730885048949,3.81418,2621.8,2621.5,0.7915]
[1730885049152,3.81432,2621.7,2621.3,3.0]
[1730885049401,3.81447,2621.6,2621.2,0.8155]
[1730885049902,3.81447,2621.6,2621.2,4.63054]
[1730885050197,3.81418,2621.8,2621.3,3.81481]
[1730885050351,3.81404,2621.9,2621.4,3.89095436]
[1730885050551,4.272548,2621.9,2621.4,3.81466]
[1730885050791,4.272548,2621.9,2621.4,7.62932]
[1730885050970,3.81404,2621.9,2621.4,3.81466]
[1730885051178,0.7711,2622.1,2621.5,3.0]
[1730885051365,4.62349,2622.4,2621.9,3.81395]
[1730885051699,0.39842301,2622.5,2622.0,3.8138]
[1730885051700,4.21163301,2622.5,2622.0,3.8138]
[1730885052049,4.46247414,2622.3,2621.2,0.8193]
[1730885052393,4.46247414,2622.3,2620.9,0.8193]
[1730885052394,0.8101,2621.7,2620.9,0.8193]
[1730885052563,3.81498,2621.3,2620.7,3.81568]
[1730885055436,4.57728,2619.8,2618.8,3.81843]
[1730885055638,4.57728,2619.8,2618.9,3.81837]
[1730885055807,3.81724,2619.7,2619.0,3.0]
[1730885056633,4.57728,2619.8,2619.0,6.81823]
[1730885056835,3.81725,2619.7,2619.0,3.0]
[1730885057141,4.274968,2619.7,2619.0,3.0]
[1730885057439,3.81775,2619.4,2618.8,3.07635259]
[1730885057645,0.457728,2619.7,2618.8,3.07636064]
[1730885057646,3.8175,2619.6,2618.8,3.07636064]
[1730885057844,0.4275228,2619.5,2618.8,6.89488075]
[1730885058143,0.4275228,2619.5,2619.1,4.59077]
[1730885058298,4.57735,2619.8,2619.1,0.7727]
[1730885058955,4.87119186,2620.3,2619.1,0.7727]
[1730885058956,3.8168,2620.0,2619.3,3.8178]
[1730885059313,3.8168,2620.0,2619.4,0.07634586]
[1730885059825,0.39871772,2620.3,2619.4,0.07634586]
[1730885060012,8.44978,2620.4,2619.7,4.62102]
[1730885060337,0.844978,2620.3,2619.8,3.0]
[1730885060638,3.81625,2620.4,2619.8,3.0]
[1730885060889,0.8172,2620.7,2619.9,0.07633527]
[1730885061162,4.21430689,2620.8,2620.1,3.0]
[1730885061376,4.21430689,2620.8,2620.0,3.0]
[1730885061662,0.42143069,2620.7,2620.1,0.07632751]
[1730885061866,3.81566,2620.8,2620.2,3.81649]
[1730885062073,3.81537,2621.0,2620.3,4.70247497]
[1730885062432,3.81513,2621.2,2620.3,0.88622497]
[1730885062751,4.21357657,2621.3,2620.6,3.8158]
[1730885062955,5.01642323,2621.3,2620.6,7.63161]
[1730885063132,0.80284666,2621.3,2620.7,3.8919774]
[1730885063349,0.39853564,2621.6,2621.0,4.6336]
[1730885063556,0.39853564,2621.6,2621.1,3.8913507]
[1730885063761,0.39853564,2621.6,2621.0,4.6336]
[1730885063943,0.44624741,2622.2,2621.5,3.81446]
[1730885063944,5.03841741,2622.2,2621.5,3.81446]
[1730885064148,0.39846575,2622.0,2621.9,3.81402]
[1730885064350,0.59742507,2622.4,2621.9,3.8133]
[1730885064551,3.81295,2622.7,2622.1,3.0]
[1730885064928,3.8126,2622.9,2622.3,3.81335]
[1730885065131,3.8126,2622.9,2622.2,3.81354]
[1730885065368,4.69253974,2622.8,2622.2,3.81354]
[1730885066137,4.69253974,2622.8,2622.1,6.81368]
[1730885066476,3.81286,2622.7,2622.1,6.81368]
[1730885066946,3.81315,2622.6,2622.0,3.0]
[1730885067142,3.81342,2622.4,2621.9,0.8133]
[1730885068444,3.81341,2622.4,2621.9,0.8133]
[1730885068654,3.8134,2622.4,2621.9,0.8133]
[1730885068932,3.8134,2622.4,2621.8,3.0]
[1730885068933,3.8136,2622.2,2621.8,3.0]
[1730885069174,3.8136,2622.2,2621.6,0.7906]
[1730885069344,3.81345,2622.3,2621.7,3.81423]
[1730885069549,4.2329215,2622.3,2621.7,3.81423]
[1730885069955,4.2329215,2622.3,2621.7,7.62846]
[1730885070478,4.2329215,2622.3,2621.8,3.0]
[1730885070672,0.4194715,2622.3,2621.8,3.0]
[1730885070881,3.81333,2622.4,2621.8,6.8904256]
[1730885071054,3.81333,2622.4,2621.8,6.81415]
[1730885071589,3.81333,2622.4,2621.8,10.62824]
[1730885071767,0.381315,2622.5,2622.0,3.81388]
[1730885071956,0.381315,2622.5,2621.8,6.81409]
[1730885072162,3.8133,2622.4,2621.8,10.62818]
[1730885072362,3.8133,2622.4,2621.8,6.81409]
[1730885072587,0.381315,2622.5,2621.7,0.07627324]
[1730885072796,0.381315,2622.5,2622.0,3.81376]
[1730885073087,0.381315,2622.5,2622.1,3.81362]
[1730885073289,3.81281,2622.8,2622.2,3.81358]
[1730885073595,3.81287,2622.7,2622.2,3.802]
[1730885074282,3.81281,2622.8,2622.2,4.61559]
[1730885074803,3.81281,2622.8,2622.2,4.69177566]
[1730885075087,3.81252,2623.0,2622.4,3.81329]
[1730885075294,4.193892,2622.9,2622.2,4.61546]
[1730885075498,4.193892,2622.9,2622.3,3.0]
[1730885075651,4.193892,2622.9,2622.4,3.81329]
[1730885076098,0.381252,2622.9,2622.3,3.0]
[1730885076269,7.62525,2622.9,2622.3,3.0]
[1730885076594,3.81272,2622.8,2622.3,6.81339]
[1730885077109,3.81257,2622.9,2622.3,6.81339]
[1730885077961,3.81273,2622.8,2622.3,6.81339]
[1730885079784,3.8126,2622.9,2622.4,3.81327]
[1730885079994,4.575106,2622.9,2622.4,3.81327]
[1730885080381,3.81317,2622.5,2622.1,3.0]
[1730885080594,3.81359,2622.2,2621.7,3.81419]
[1730885080781,8.389968,2622.2,2621.7,3.81419]
[1730885081109,4.576288,2622.2,2621.7,3.81419]
[1730885081302,3.81373,2622.1,2621.7,3.81419]
[1730885081618,4.576288,2622.2,2621.7,3.81431]
[1730885081903,4.576288,2622.2,2621.8,3.0]
[1730885081904,0.762698,2622.2,2621.8,3.0]
[1730885082081,3.81339,2622.4,2621.8,3.0]
[1730885082283,3.8136,2622.2,2621.8,3.0]
[1730885082479,7.62728,2622.2,2621.8,3.0]
[1730885082792,3.8136,2622.2,2621.6,6.81445]
[1730885082995,3.81389,2622.0,2621.6,3.0]
[1730885083166,3.81389,2622.0,2621.3,7.62955]
[1730885083371,3.81389,2622.0,2621.5,3.81454]
[1730885084013,4.62389,2622.5,2622.0,3.81373]
[1730885084172,5.086149,2622.5,2622.0,3.81373]
[1730885084564,5.086149,2622.5,2622.0,7.62753]
[1730885085014,5.086149,2622.5,2622.0,3.81373]
[1730885085569,0.8106,2622.5,2622.0,3.81373]
[1730885085871,0.40839548,2623.2,2622.3,3.81341]
[1730885085872,4.61803,2622.8,2622.3,3.81341]
[1730885086084,3.81252,2623.0,2622.5,3.81314]
[1730885086412,0.8052,2623.1,2622.6,3.813]
[1730885086614,4.61749,2623.1,2622.6,3.813]
[1730885086783,4.61749,2623.1,2622.6,7.62593]
[1730885086970,5.460449,2623.1,2622.6,7.62593]
[1730885087333,5.460449,2623.1,2622.6,7.62585]
[1730885087674,5.460449,2623.1,2622.6,3.81292]
[1730885088175,9.272819,2623.1,2622.6,3.81292]
[1730885088475,5.460449,2623.1,2622.6,3.81292]
[1730885088686,0.5460449,2623.0,2622.5,4.64112]
[1730885089018,0.5460449,2623.0,2622.7,3.81285]
[1730885089509,3.81214,2623.2,2622.7,3.81285]
[1730885090212,0.8314,2623.0,2622.3,3.0]
[1730885090510,3.81307,2622.6,2622.1,7.62727]
[1730885090814,3.81307,2622.6,2622.1,3.81361]
[1730885091268,3.81291,2622.7,2622.1,3.81361]
[1730885091470,0.381291,2622.7,2622.0,6.81387]
[1730885091672,3.81317,2622.5,2622.0,10.62768]
[1730885091982,3.81317,2622.5,2622.1,3.81371]
[1730885092384,3.81297,2622.7,2622.0,6.81381]
[1730885092596,3.81303,2622.6,2622.1,3.8136]
[1730885092791,3.81325,2622.5,2622.1,3.0]
[1730885092997,3.81298,2622.7,2622.1,3.0]
[1730885093211,3.81323,2622.5,2622.1,3.0]
[1730885095420,3.81323,2622.5,2622.0,3.0]
[1730885095729,3.81298,2622.7,2622.1,3.81371]
[1730885096037,0.381298,2622.6,2622.2,3.81354]
[1730885096540,0.464373,2622.9,2622.1,3.81361]
[1730885096832,3.81301,2622.6,2622.1,3.81361]
[1730885097328,3.81301,2622.6,2622.2,3.81357]
[1730885097526,3.81271,2622.8,2622.3,3.81336]
[1730885097824,0.464373,2622.9,2622.5,3.81308]
[1730885098002,0.464373,2622.9,2621.9,0.8215]
[1730885098003,3.81338,2622.4,2622.0,3.0]
[1730885098795,3.81309,2622.6,2622.0,3.0]
[1730885098995,3.81334,2622.4,2622.0,3.0]
[1730885099433,3.8131,2622.6,2622.0,6.81386]
[1730885099728,3.81317,2622.5,2622.1,3.8137]
[1730885099932,3.81317,2622.5,2622.0,6.81386]
[1730885100611,0.55,2622.9,2621.9,0.8215]
[1730885100808,0.55,2622.9,2622.0,3.81378]
[1730885100809,3.81316,2622.5,2622.0,3.81378]
[1730885101010,0.381316,2622.4,2622.0,3.81378]
[1730885101205,3.81331,2622.4,2622.0,3.81378]
[1730885102230,3.81331,2622.4,2621.9,4.63543]
[1730885102430,3.81316,2622.5,2622.0,6.8138]
[1730885102602,3.81279,2622.8,2622.3,3.81344]
[1730885102815,3.81293,2622.7,2622.2,6.81359]
[1730885103326,4.575492,2622.7,2622.2,6.81359]
[1730885103905,4.575492,2622.7,2622.3,3.81338]
[1730885104130,3.81293,2622.7,2622.3,3.81338]
[1730885104432,3.81266,2622.9,2622.4,0.7859]
[1730885104598,7.62534,2622.9,2622.4,4.59919]
[1730885104800,3.81279,2622.8,2622.4,0.7859]
[1730885105030,3.81279,2622.8,2622.2,3.0]
[1730885105031,1.552245,2622.8,2622.2,3.0]
[1730885105246,3.8134,2622.4,2622.0,3.0]
[1730885105446,3.8134,2622.4,2622.0,6.81386]
[1730885106537,3.81345,2622.3,2621.9,6.814]
[1730885106740,3.8134,2622.4,2621.9,6.814]
[1730885107245,3.8134,2622.4,2621.9,3.0]
[1730885107246,0.38134,2622.4,2621.9,3.0]
[1730885107415,3.81432,2621.7,2621.5,0.7636]
[1730885107604,0.7892,2622.3,2621.5,0.7636]
[1730885107605,3.81411,2621.9,2621.5,0.7636]
[1730885108007,3.81387,2622.1,2621.6,3.81445]
[1730885108205,4.655491,2622.1,2621.5,0.7636]
[1730885108744,3.81404,2621.9,2621.5,0.7636]
[1730885108915,4.655491,2622.1,2621.5,4.57814]
[1730885109243,3.81417,2621.8,2621.5,0.7636]
[1730885109414,3.81403,2621.9,2621.5,0.7636]
[1730885109607,3.81426,2621.8,2621.5,0.7636]
[1730885110342,3.81403,2621.9,2621.5,0.7636]
[1730885111305,3.81337,2622.4,2621.7,3.0]
[1730885111660,4.64406,2622.5,2621.6,3.81437]
[1730885111661,3.81315,2622.5,2621.6,3.81437]
[1730885111804,3.81381,2622.1,2621.7,3.0]
[1730885112200,3.81381,2622.1,2621.6,3.81437]
[1730885112430,3.81381,2622.1,2621.6,7.62874]
[1730885112628,3.81414,2621.9,2621.5,0.7636]
[1730885112828,0.381315,2622.4,2621.5,4.5782]
[1730885112829,3.81381,2622.1,2621.5,4.5782]
[1730885113050,3.81397,2622.0,2621.5,4.5782]
[1730885113778,3.81397,2622.0,2621.6,3.81445]
[1730885113934,3.81397,2622.0,2621.5,0.7636]
[1730885114278,3.81403,2621.9,2621.5,0.7636]
[1730885114738,3.81389,2622.0,2621.5,4.57813]
[1730885115133,0.381381,2622.1,2621.6,3.81445]
[1730885115341,3.81367,2622.2,2621.7,3.8143]
[1730885115594,3.81344,2622.3,2621.9,3.81395]
[1730885115870,3.81373,2622.2,2622.0,0.8193]
[1730885116037,3.81373,2622.2,2621.7,4.63361]
[1730885116243,3.81373,2622.2,2621.7,4.63352]
[1730885116441,3.81373,2622.2,2621.8,3.8141]
[1730885116665,4.64488,2622.8,2621.7,4.63352]
[1730885116977,3.81355,2622.3,2621.7,4.63352]
[1730885117138,7.6271,2622.3,2621.8,3.81417]
[1730885117479,3.81352,2622.3,2621.8,3.81415]
[1730885117780,0.464488,2622.7,2621.8,3.81408]
[1730885117982,3.81322,2622.5,2622.0,3.81386]
[1730885118143,3.81322,2622.5,2621.8,3.81408]
[1730885118144,3.81338,2622.4,2621.9,3.81401]
[1730885118342,3.81345,2622.3,2621.8,3.81416]
[1730885118584,3.81345,2622.3,2621.9,3.81399]
[1730885118884,3.81326,2622.5,2621.9,3.81389]
[1730885119084,3.81332,2622.4,2622.0,3.81386]
[1730885119444,3.81332,2622.4,2622.0,7.62772]
[1730885119671,3.81299,2622.7,2622.0,7.62772]
[1730885119672,3.81315,2622.5,2622.1,3.81369]
[1730885119875,3.81315,2622.5,2622.0,3.81386]
[1730885120088,3.81315,2622.5,2622.0,3.8138]
[1730885120290,3.81302,2622.6,2622.1,4.61593]
[1730885120646,3.81317,2622.5,2622.1,4.61593]
[1730885121091,3.81317,2622.5,2622.1,0.8023]
[1730885121478,3.81331,2622.4,2622.1,0.8023]
[1730885121798,3.81351,2622.3,2621.8,4.60016]
[1730885122270,3.81359,2622.2,2621.8,4.60016]
[1730885122465,3.81359,2622.2,2621.8,0.7861]
[1730885122703,3.81382,2622.1,2621.8,0.7861]
[1730885123001,3.81394,2622.0,2621.8,0.7861]
[1730885123609,3.81394,2622.0,2621.6,4.59163]
[1730885123804,4.576561,2622.1,2621.6,0.7772]
[1730885123805,0.762741,2622.1,2621.6,0.7772]
[1730885123964,3.81418,2621.8,2621.4,3.81472]
[1730885124164,3.81418,2621.8,2621.3,0.8121]
[1730885124360,3.81418,2621.8,2621.3,8.4417]
[1730885124594,3.81399,2622.0,2621.4,3.81475]
[1730885124815,0.4576731,2621.9,2621.4,3.81475]
[1730885125168,0.4576731,2621.9,2621.3,4.62693]
[1730885125368,3.81444,2621.7,2621.3,0.8121]
[1730885126610,3.81414,2621.9,2621.3,4.62687]
[1730885126901,0.762803,2621.8,2621.3,0.8121]
[1730885127108,3.81389,2622.0,2621.4,3.81467]
[1730885127266,3.81404,2621.9,2621.3,8.44169]
[1730885127472,3.81384,2622.1,2621.3,4.62687]
[1730885127788,3.81403,2621.9,2621.3,4.62687]
[1730885127994,3.8136,2622.2,2621.7,3.8143]
[1730885128165,0.7643,2622.3,2621.7,3.81424]
[1730885128368,3.81327,2622.5,2621.9,3.81401]
[1730885128369,3.81332,2622.4,2621.9,3.81401]
[1730885128627,3.81327,2622.5,2621.9,3.81401]
[1730885128939,0.8261,2622.6,2621.4,3.81474]
[1730885128940,0.8261,2622.6,2622.1,3.81373]
[1730885129134,0.463906,2622.6,2622.1,7.62732]
[1730885129628,0.463906,2622.6,2622.1,3.81365]